fUSD/lending_fUSD_20251212
["ID","MTS","AMOUNT","RATE_DAILY","PERIOD"]
[398331105,1765537972584,-3771.23,0.00038904,30]
[398331106,1765537972594,-500.0,0.00038904,30]
[398331107,1765537972603,-813.18,0.00038904,30]
[398331108,1765537972612,-500.0,0.00038904,30]
[398331109,1765537972622,-1179.73,0.00038904,30]
[398331110,1765537972631,-500.0,0.00038904,30]
[398331111,1765537972641,-500.0,0.00038904,30]
[398331112,1765537972650,-1235.8,0.00038904,30]
[398331113,1765537972660,-1360.54,0.00038904,30]
[398331114,1765537972669,-604.12,0.00038904,30]
[398331115,1765537972679,-500.0,0.00038904,30]
[398331116,1765537972688,-500.0,0.00038904,30]
[398331117,1765537972698,-504.36980993,0.00038904,30]
[398331118,1765537972707,-500.0,0.00038904,30]
[398331119,1765537972716,-500.0,0.00038904,2]
[398331120,1765537972727,-500.0,0.00038904,30]
[398331121,1765537972736,-500.0,0.00038904,30]
[398331122,1765537972746,-500.0,0.00038904,30]
[398331123,1765537972756,-500.0,0.00038904,30]
[398331124,1765537972765,-972.77,0.00038904,30]
[398331125,1765537972775,-500.0,0.00038904,30]
[398331126,1765537972784,-500.0,0.00038904,30]
[398331127,1765537972794,-500.0,0.00038904,30]
[398331128,1765537972803,-500.0,0.00038904,30]
[398331129,1765537972812,-500.0,0.00038904,30]
[398331130,1765537972822,-4363.05,0.00038904,30]
[398331131,1765537972832,-731.82,0.00038904,30]
[398331132,1765537972846,-1625.02,0.00038904,30]
[398331133,1765537972855,-1418.58,0.00038904,30]
[398331134,1765537972865,-500.0,0.00038904,30]
[398331135,1765537972874,-500.0,0.00038904,30]
[398331136,1765537972884,-500.0,0.00038904,30]
[398331137,1765537972895,-500.0,0.00038904,30]
[398331138,1765537972905,-500.0,0.00038904,30]
[398331139,1765537972915,-500.0,0.00038904,30]
[398331140,1765537972925,-500.0,0.00038904,30]
[398331141,1765537972935,-500.0,0.00038904,30]
[398331142,1765537972944,-805.19,0.00038904,30]
[398331143,1765537972954,-1679.93,0.00038904,30]
[398331144,1765537972963,-500.0,0.00038904,30]
[398331145,1765537972973,-500.0,0.00038904,30]
[398331146,1765537972983,-500.0,0.00038904,30]
[398331147,1765537972993,-11739.26,0.00038904,30]
[398331148,1765537973007,-510.13,0.00038904,30]
[398331149,1765537973027,-500.0,0.00038904,30]
[398331150,1765537973046,-500.0,0.00038904,30]
[398331151,1765537973056,-500.0,0.00038904,30]
[398331152,1765537973066,-1704.19,0.00038904,30]
[398331153,1765537973076,-878.65,0.00038904,30]
[398331154,1765537973087,-500.0,0.00038904,30]
[398331155,1765537973097,-619.07,0.00038904,30]
[398331156,1765537973107,-2892.66,0.00038904,30]
[398331157,1765537973118,-500.0,0.00038904,30]
[398331158,1765537973128,-500.0,0.00038904,30]
[398331159,1765537973138,-500.0,0.00038904,30]
[398331160,1765537973148,-500.0,0.00038904,30]
[398331161,1765537973158,-1899.29,0.00038904,30]
[398331162,1765537973168,-500.0,0.00038904,30]
[398331163,1765537973177,-1019.28,0.00038904,30]
[398331164,1765537973187,-500.0,0.00038904,30]
[398331165,1765537973196,-500.0,0.00038904,30]
[398331166,1765537973206,-1418.57,0.00038904,30]
[398331167,1765537973217,-500.0,0.00038904,30]
[398331168,1765537973226,-500.0,0.00038904,30]
[398331169,1765537973236,-500.0,0.00038904,30]
[398331170,1765537973245,-500.0,0.00038904,30]
[398331171,1765537973255,-500.0,0.00038904,30]
[398331172,1765537973265,-736.31,0.00038904,30]
[398331173,1765537973274,-500.0,0.00038904,30]
[398331174,1765537973284,-500.0,0.00038904,30]
[398331175,1765537973294,-500.0,0.00038904,30]
[398331176,1765537973304,-803.38,0.00038904,30]
[398331177,1765537973313,-500.0,0.00038904,30]
[398331178,1765537973323,-522.15,0.00038904,30]
[398331179,1765537973334,-500.0,0.00038904,30]
[398331180,1765537973344,-500.0,0.00038904,30]
[398331181,1765537973354,-500.0,0.00038904,30]
[398331182,1765537973363,-500.0,0.00038904,30]
[398331183,1765537973373,-500.0,0.00038904,30]
[398331184,1765537973383,-1055.47,0.00038904,30]
[398331185,1765537973392,-694.39,0.00038904,30]
[398331186,1765537973402,-506.51180017,0.00038904,30]
[398331187,1765537973411,-1480.3,0.00038904,30]
[398331188,1765537973421,-1529.14,0.00038904,30]
[398331189,1765537973431,-500.0,0.00038904,30]
[398331190,1765537973441,-1887.69,0.00038904,30]
[398331191,1765537973451,-500.0,0.00038904,30]
[398331192,1765537973461,-1537.38,0.00038904,30]
[398331193,1765537973471,-500.0,0.00038904,30]
[398331194,1765537973481,-814.49,0.00038904,30]
[398331195,1765537973491,-500.0,0.00038904,30]
[398331196,1765537973500,-500.0,0.00038904,30]
[398331197,1765537973510,-878.0,0.00038904,30]
[398331198,1765537973519,-500.0,0.00038904,30]
[398331199,1765537973529,-542.52,0.00038904,30]
[398331200,1765537973538,-500.0,0.00038904,30]
[398331201,1765537973548,-500.0,0.00038904,30]
[398331202,1765537973557,-500.0,0.00038904,30]
[398331203,1765537973566,-1609.53,0.00038904,30]
[398331204,1765537973576,-503.16733069,0.00038904,30]
[398331205,1765537973585,-500.0,0.00038904,30]
[398331206,1765537973594,-500.0,0.00038904,30]
[398331207,1765537973604,-1220.84,0.00038904,30]
[398331208,1765537973613,-500.0,0.00038904,30]
[398331209,1765537973623,-500.0,0.00038904,30]
[398331210,1765537973632,-500.0,0.00038904,30]
[398331211,1765537973641,-1987.44,0.00038904,30]
[398331212,1765537973650,-500.0,0.00038904,30]
[398331213,1765537973660,-500.0,0.00038904,30]
[398331214,1765537973670,-1330.17,0.00038904,30]
[398331215,1765537973680,-994.63,0.00038904,30]
[398331216,1765537973689,-1382.15,0.00038904,30]
[398331217,1765537973698,-500.0,0.00038904,30]
[398331218,1765537973708,-500.0,0.00038904,30]
[398331219,1765537973717,-1159.62,0.00038904,30]
[398331220,1765537973727,-500.0,0.00038904,30]
[398331221,1765537973736,-500.0,0.00038904,30]
[398331222,1765537973746,-500.0,0.00038904,30]
[398331223,1765537973756,-1136.89,0.00038904,30]
[398331224,1765537973765,-556.58,0.00038904,30]
[398331225,1765537973775,-9826.53,0.00038904,30]
[398331226,1765537973785,-500.0,0.00038904,30]
[398331227,1765537973795,-511.1750931,0.00038904,30]
[398331228,1765537973809,-500.0,0.00038904,30]
[398331229,1765537973819,-500.0,0.00038904,30]
[398331230,1765537973828,-500.0,0.00038904,30]
[398331231,1765537973839,-972.17,0.00038904,30]
[398331232,1765537973851,-505.38049814,0.00038904,30]
[398331233,1765537973861,-500.0,0.00038904,30]
[398331234,1765537973870,-731.37,0.00038904,30]
[398331235,1765537973880,-500.0,0.00038904,30]
[398331236,1765537973890,-1614.96,0.00038904,30]
[398331237,1765537973900,-500.0,0.00038904,30]
[398331238,1765537973910,-500.0,0.00038904,30]
[398331239,1765537973920,-4738.09,0.00038904,30]
[398331240,1765537973929,-1327.17,0.00038904,30]
[398331241,1765537973939,-500.0,0.00038904,30]
[398331242,1765537973949,-3631.76,0.00038904,30]
[398331243,1765537973959,-500.0,0.00038904,30]
[398331244,1765537973969,-500.0,0.00038904,30]
[398331245,1765537973979,-500.0,0.00038904,30]
[398331246,1765537973989,-500.0,0.00038904,30]
[398331247,1765537973998,-500.0,0.00038904,30]
[398331248,1765537974008,-963.98,0.00038904,30]
[398331249,1765537974018,-634.95,0.00038904,30]
[398331250,1765537974027,-3329.8,0.00038904,30]
[398331251,1765537974037,-500.0,0.00038904,30]
[398331252,1765537974047,-500.0,0.00038904,30]
[398331253,1765537974057,-500.0,0.00038904,30]
[398331254,1765537974067,-1124.07,0.00038904,30]
[398331255,1765537974077,-500.0,0.00038904,30]
[398331256,1765537974087,-500.0,0.00038904,30]
[398331257,1765537974097,-876.92,0.00038904,30]
[398331258,1765537974106,-500.0,0.00038904,30]
[398331259,1765537974116,-502.84982511,0.00038904,30]
[398331260,1765537974127,-500.0,0.00038904,30]
[398331261,1765537974138,-500.0,0.00038904,30]
[398331262,1765537974147,-500.0,0.00038904,30]
[398331263,1765537974157,-500.0,0.00038904,30]
[398331264,1765537974167,-500.0,0.00038904,30]
[398331265,1765537974176,-500.0,0.00038904,30]
[398331266,1765537974185,-500.0,0.00038904,30]
[398331267,1765537974195,-500.0,0.00038904,30]
[398331268,1765537974204,-500.0,0.00038904,30]
[398331269,1765537974214,-500.0,0.00038904,30]
[398331270,1765537974223,-613.85,0.00038904,30]
[398331271,1765537974233,-705.22,0.00038904,30]
[398331272,1765537974243,-500.0,0.00038904,30]
[398331273,1765537974252,-601.44,0.00038904,30]
[398331274,1765537974261,-680.86,0.00038904,30]
[398331275,1765537974270,-500.0,0.00038904,30]
[398331276,1765537974279,-500.0,0.00038904,30]
[398331277,1765537974289,-500.0,0.00038904,30]
[398331278,1765537974299,-500.0,0.00038904,30]
[398331279,1765537974308,-500.0,0.00038904,30]
[398331280,1765537974317,-1255.36,0.00038904,30]
[398331281,1765537974327,-500.0,0.00038904,30]
[398331282,1765537974336,-500.0,0.00038904,30]
[398331283,1765537974347,-523.20406609,0.00038904,30]
[398331284,1765537974356,-757.92,0.00038904,30]
[398331285,1765537974674,-500.0,0.00038904,30]
[398331286,1765537974720,-500.0,0.00038904,30]
[398331287,1765537974729,-976.99,0.00038904,30]
[398331288,1765537974739,-681.9,0.00038904,30]
[398331289,1765537974748,-500.0,0.00038904,30]
[398331290,1765537974757,-500.0,0.00038904,30]
[398331291,1765537974766,-500.0,0.00038904,30]
[398331292,1765537974775,-500.0,0.00038904,30]
[398331293,1765537974785,-766.68,0.00038904,30]
[398331294,1765537974795,-500.0,0.00038904,30]
[398331295,1765537974804,-500.0,0.00038904,30]
[398331296,1765537974814,-500.0,0.00038904,30]
[398331297,1765537974823,-500.0,0.00038904,30]
[398331298,1765537974832,-500.0,0.00038904,30]
[398331299,1765537974842,-500.0,0.00038904,30]
[398331300,1765537974852,-500.0,0.00038904,30]
[398331301,1765537974861,-500.0,0.00038904,30]
[398331302,1765537974870,-500.0,0.00038904,30]
[398331303,1765537974879,-500.0,0.00038904,30]
[398331304,1765537974888,-161.97477542,0.00038904,30]
[398331305,1765537974898,-500.0,0.00038904,30]
[398331306,1765537974907,-820.89,0.00038904,30]
[398331307,1765537974916,-1425.77,0.00038904,30]
[398331308,1765537974926,-500.0,0.00038904,30]
[398331309,1765537974935,-500.0,0.00038904,25]
[398331310,1765537974945,-500.0,0.00038904,30]
[398331311,1765537974955,-500.0,0.00038904,30]
[398331312,1765537974965,-2237.4,0.00038904,30]
[398331313,1765537974975,-574.67,0.00038904,30]
[398331314,1765537974984,-500.0,0.00038904,30]
[398331315,1765537974994,-673.29,0.00038904,30]
[398331316,1765537975004,-500.0,0.00038904,30]
[398331317,1765537975013,-500.0,0.00038904,30]
[398331318,1765537975022,-1020.61,0.00038904,30]
[398331319,1765537975032,-500.0,0.00038904,30]
[398331320,1765537975042,-500.0,0.00038904,30]
[398331321,1765537975051,-500.0,0.00038904,30]
[398331322,1765537975061,-168.86003931,0.00038904,30]
[398331323,1765537975070,-749.57,0.00038904,30]
[398331324,1765537975080,-500.0,0.00038904,30]
[398331325,1765537975089,-520.88,0.00038904,30]
[398331326,1765537975099,-500.0,0.00038904,30]
[398331327,1765537975107,-558.5,0.00038904,30]
[398331328,1765537975117,-500.0,0.00038904,30]
[398331329,1765537975127,-500.0,0.00038904,30]
[398331330,1765537975136,-1224.23,0.00038904,30]
[398331331,1765537975146,-628.4,0.00038904,30]
[398331332,1765537975157,-511.97771355,0.00038904,30]
[398331333,1765537975167,-500.0,0.00038904,30]
[398331334,1765537975177,-500.0,0.00038904,30]
[398331335,1765537975187,-500.0,0.00038904,30]
[398331336,1765537975196,-1487.24,0.00038904,30]
[398331337,1765537975206,-500.0,0.00038904,30]
[398331338,1765537975215,-500.0,0.00038904,30]
[398331339,1765537975225,-500.0,0.00038904,30]
[398331340,1765537975234,-500.0,0.00038904,30]
[398331341,1765537975244,-500.0,0.00038904,30]
[398331342,1765537975254,-643.83,0.00038904,30]
[398331343,1765537975264,-500.0,0.00038904,30]
[398331344,1765537975273,-1267.76,0.00038904,30]
[398331345,1765537975282,-500.0,0.00038904,30]
[398331346,1765537975292,-500.0,0.00038904,30]
[398331347,1765537975301,-554.79,0.00038904,30]
[398331348,1765537975311,-500.0,0.00038904,30]
[398331349,1765537975320,-500.0,0.00038904,30]
[398331350,1765537975330,-500.0,0.00038904,30]
[398331351,1765537975339,-500.13,0.00038904,30]
[398331352,1765537975349,-500.0,0.00038904,30]
[398331353,1765537975359,-543.72,0.00038904,30]
[398331354,1765537975368,-1502.85,0.00038904,30]
[398331355,1765537975378,-901.37,0.00038904,30]
[398331356,1765537975388,-865.46,0.00038904,30]
[398331357,1765537975397,-500.0,0.00038904,30]
[398331358,1765537975407,-1483.56,0.00038904,30]
[398331359,1765537975416,-500.0,0.00038904,30]
[398331360,1765537975425,-500.0,0.00038904,30]
[398331361,1765537975435,-500.0,0.00038904,30]
[398331362,1765537975444,-500.0,0.00038904,30]
[398331363,1765537975453,-500.0,0.00038904,30]
[398331364,1765537975463,-649.57624068,0.00038904,30]
[398331365,1765537975472,-500.0,0.00038904,30]
[398331366,1765537975481,-2056.86,0.00038904,30]
[398331367,1765537975491,-500.0,0.00038904,30]
[398331368,1765537975500,-500.0,0.00038904,30]
[398331369,1765537975510,-500.0,0.00038904,30]
[398331370,1765537975519,-329.04,0.00038904,30]
[398331371,1765537975529,-500.0,0.00038904,30]
[398331372,1765537975538,-598.84,0.00038904,30]
[398331373,1765537975548,-607.91,0.00038904,30]
[398331374,1765537975557,-286.28,0.00038904,30]
[398331375,1765537975567,-500.0,0.00038904,30]
[398331376,1765537975576,-500.0,0.00038904,30]
[398331377,1765537975585,-500.0,0.00038904,30]
[398331378,1765537975595,-500.0,0.00038904,30]
[398331379,1765537975604,-264.13139856,0.00038904,30]
[398331380,1765537975614,-500.0,0.00038904,30]
[398331381,1765537975623,-534.7520495,0.00038904,30]
[398331382,1765537975633,-500.0,0.00038904,30]
[398331383,1765537975642,-500.0,0.00038904,30]
[398331384,1765537975652,-160.44,0.00038904,30]
[398331385,1765537975661,-220.55,0.00038904,30]
[398331386,1765537975670,-500.0,0.00038904,30]
[398331387,1765537975680,-500.0,0.00038904,30]
[398331388,1765537975690,-500.0,0.00038904,30]
[398331389,1765537975699,-500.0,0.00038904,30]
[398331390,1765537975709,-500.0,0.00038904,30]
[398331391,1765537975719,-500.0,0.00038904,30]
[398331392,1765537975728,-500.0,0.00038904,30]
[398331393,1765537975738,-500.0,0.00038904,30]
[398331394,1765537975748,-500.0,0.00038904,30]
[398331395,1765537975758,-500.0,0.00038904,30]
[398331396,1765537975768,-2287.8,0.00038904,30]
[398331397,1765537975778,-500.0,0.00038904,30]
[398331398,1765537975787,-500.0,0.00038904,30]
[398331399,1765537975797,-500.0,0.00038904,30]
[398331400,1765537975807,-501.4276396,0.00038904,30]
[398331401,1765537975816,-500.0,0.00038904,30]
[398331402,1765537975825,-500.0,0.00038904,30]
[398331403,1765537975835,-360.24920271,0.00038904,30]
[398331404,1765537975849,-500.0,0.00038904,30]
[398331405,1765537975858,-500.0,0.00038904,30]
[398331406,1765537975868,-450.5,0.00038904,30]
[398331407,1765537975877,-500.0,0.00038904,30]
[398331408,1765537975890,-411.66439552,0.00038904,30]
[398331409,1765537975899,-500.0,0.00038904,30]
[398331410,1765537975909,-500.0,0.00038904,30]
[398331411,1765537975919,-500.0,0.00038904,30]
[398331412,1765537975929,-533.81677943,0.00038904,30]
[398331413,1765537975940,-500.0,0.00038904,30]
[398331414,1765537975949,-327.86,0.00038904,30]
[398331415,1765537975959,-555.94,0.00038904,30]
[398331416,1765537975969,-500.0,0.00038904,30]
[398331417,1765537975979,-500.0,0.00038904,30]
[398331418,1765537975989,-236.09,0.00038904,30]
[398331419,1765537975999,-500.0,0.00038904,30]
[398331420,1765537976009,-500.0,0.00038904,30]
[398331421,1765537976019,-500.0,0.00038904,30]
[398331422,1765537976029,-500.0,0.00038904,30]
[398331423,1765537976039,-500.0,0.00038904,30]
[398331424,1765537976049,-500.0,0.00038904,30]
[398331425,1765537976058,-500.0,0.00038904,30]
[398331426,1765537976069,-500.0,0.00038904,30]
[398331427,1765537976079,-500.0,0.00038904,30]
[398331428,1765537976088,-500.0,0.00038904,30]
[398331429,1765537976098,-868.9,0.00038904,30]
[398331430,1765537976108,-500.0,0.00038904,30]
[398331431,1765537976118,-500.0,0.00038904,30]
[398331432,1765537976128,-671.73,0.00038904,30]
[398331433,1765537976137,-500.0,0.00038904,30]
[398331434,1765537976148,-500.0,0.00038904,30]
[398331435,1765537976158,-2439.55,0.00038904,30]
[398331436,1765537976167,-500.0,0.00038904,30]
[398331437,1765537976177,-249.18,0.00038904,30]
[398331438,1765537976187,-500.0,0.00038904,30]
[398331439,1765537976196,-2828.46,0.00038904,120]
[398331440,1765537976205,-478.35,0.00038904,30]
[398331441,1765537976215,-500.0,0.00038904,30]
[398331442,1765537976225,-500.0,0.00038904,30]
[398331443,1765537976234,-500.0,0.00038904,30]
[398331444,1765537976244,-502.35095933,0.00038904,30]
[398331445,1765537976254,-166.2,0.00038904,30]
[398331446,1765537976264,-170.8,0.00038904,30]
[398331447,1765537976274,-315.33,0.00038904,30]
[398331448,1765537976284,-500.0,0.00038904,30]
[398331449,1765537976295,-540.91,0.00038904,30]
[398331450,1765537976305,-500.0,0.00038904,30]
[398331451,1765537976315,-500.0,0.00038904,30]
[398331452,1765537976325,-169.69,0.00038904,30]
[398331453,1765537976335,-500.0,0.00038904,30]
[398331454,1765537976345,-410.89,0.00038904,30]
[398331455,1765537976354,-293.37,0.00038904,30]
[398331456,1765537976364,-500.0,0.00038904,30]
[398331457,1765537976373,-217.96,0.00038904,30]
[398331458,1765537976383,-221.69,0.00038904,30]
[398331459,1765537976393,-500.0,0.00038904,30]
[398331460,1765537976402,-199.96,0.00038904,30]
[398331461,1765537976411,-3289.05,0.00038904,30]
[398331462,1765537976421,-5959.38536385,0.00038904,30]
[398331463,1765537976431,-512.18,0.00038904,30]
[398331464,1765537976440,-200.5857748,0.00038904,30]
[398331465,1765537976450,-500.0,0.00038904,7]
[398331466,1765537976459,-1876.03,0.00038904,30]
[398331467,1765537976469,-440.88089565,0.00038904,30]
[398331468,1765537976479,-500.0,0.00038904,30]
[398331469,1765537976489,-476.53,0.00038904,30]
[398331470,1765537976499,-170.78,0.00038904,30]
[398331471,1765537976508,-500.0,0.00038904,30]
[398331472,1765537976518,-150.0,0.00038904,30]
[398331473,1765537976528,-281.36,0.00038904,30]
[398331474,1765537976537,-498.88,0.00038904,30]
[398331475,1765537976548,-210.84,0.00038904,30]
[398331476,1765537976558,-500.0,0.00038904,30]
[398331477,1765537976568,-500.0,0.00038904,30]
[398331478,1765537976578,-500.0,0.00038904,30]
[398331479,1765537976588,-239.48,0.00038904,30]
[398331480,1765537976605,-174.03,0.00038904,30]
[398331481,1765537976614,-500.0,0.00038904,30]
[398331482,1765537976623,-170.78,0.00038904,30]
[398331483,1765537976634,-500.0,0.00038904,30]
[398331484,1765537976643,-500.0,0.00038904,30]
[398331485,1765537976652,-150.0,0.00038904,30]
[398331486,1765537976662,-281.36,0.00038904,30]
[398331487,1765537976672,-498.88,0.00038904,30]
[398331488,1765537976681,-500.0,0.00038904,30]
[398331489,1765537976690,-210.84,0.00038904,30]
[398331490,1765537976700,-282.72,0.00038904,30]
[398331491,1765537976709,-500.0,0.00038904,30]
[398331492,1765537976718,-500.0,0.00038904,30]
[398331493,1765537976728,-437.1,0.00038904,30]
[398331494,1765537976738,-395.6,0.00038904,30]
[398331495,1765537976747,-366.14,0.00038904,30]
[398331496,1765537976756,-449.18,0.00038904,30]
[398331497,1765537976765,-500.0,0.00038904,30]
[398331498,1765537976776,-211.32,0.00038904,30]
[398331499,1765537976785,-404.38,0.00038904,30]
[398331500,1765537976794,-208.12,0.00038904,30]
[398331501,1765537976803,-476.53,0.00038904,30]
[398331502,1765537976812,-647.4,0.00038904,30]
[398331503,1765537976822,-500.0,0.00038904,30]
[398331504,1765537976831,-500.0,0.00038904,30]
[398331505,1765537976841,-360.64,0.00038904,30]
[398331506,1765537976850,-170.78,0.00038904,30]
[398331507,1765537976860,-515.12,0.00038904,30]
[398331508,1765537976870,-468.28,0.00038904,30]
[398331509,1765537976879,-500.0,0.00038904,30]
[398331510,1765537976888,-236.94,0.00038904,30]
[398331511,1765537976898,-500.0,0.00038904,30]
[398331512,1765537976908,-500.0,0.00038904,30]
[398331513,1765537976917,-500.0,0.00038904,30]
[398331514,1765537976926,-183.4,0.00038904,30]
[398331515,1765537976936,-500.0,0.00038904,30]
[398331516,1765537976945,-230.56,0.00038904,30]
[398331517,1765537976955,-500.0,0.00038904,30]
[398331518,1765537976965,-500.0,0.00038904,30]
[398331519,1765537976975,-281.36,0.00038904,30]
[398331520,1765537976985,-166.16,0.00038904,30]
[398331521,1765537976995,-255.7,0.00038904,30]
[398331522,1765537977006,-498.88,0.00038904,30]
[398331523,1765537977015,-500.0,0.00038904,30]
[398331524,1765537977026,-150.0,0.00038904,30]
[398331525,1765537977036,-210.84,0.00038904,30]
[398331526,1765537977046,-500.0,0.00038904,30]
[398331527,1765537977055,-544.96,0.00038904,30]
[398331528,1765537977065,-500.0,0.00038904,30]
[398331529,1765537977205,-500.0,0.00038904,30]
[398331530,1765537977215,-500.0,0.00038904,30]
[398331531,1765537977224,-500.0,0.00038904,30]
[398331532,1765537977233,-500.0,0.00038904,30]
[398331533,1765537977242,-500.0,0.00038904,30]
[398331534,1765537977251,-500.0,0.00038904,30]
[398331535,1765537977261,-338.58360492,0.00038904,30]
[398331536,1765537977270,-500.0,0.00038904,30]
[398331537,1765537977279,-500.0,0.00038904,30]
[398331538,1765537977288,-500.0,0.00038904,30]
[398331539,1765537977297,-500.0,0.00038904,30]
[398331540,1765537977306,-500.0,0.00038904,30]
[398331541,1765537977315,-533.48517342,0.00038904,30]
[398331542,1765537977324,-500.0,0.00038904,30]
[398331543,1765537977334,-500.0,0.00038904,30]
[398331544,1765537977343,-500.0,0.00038904,30]
[398331545,1765537977352,-209.56,0.00038904,30]
[398331546,1765537977361,-500.0,0.00038904,30]
[398331547,1765537977370,-500.0,0.00038904,30]
[398331548,1765537977380,-500.0,0.00038904,30]
[398331549,1765537977389,-500.0,0.00038904,30]
[398331550,1765537977398,-500.0,0.00038904,30]
[398331551,1765537977407,-242.01466613,0.00038904,30]
[398331552,1765537977417,-500.0,0.00038904,30]
[398331553,1765537977427,-500.0,0.00038904,30]
[398331554,1765537977436,-500.0,0.00038904,30]
[398331555,1765537977445,-500.0,0.00038904,30]
[398331556,1765537977454,-500.0,0.00038904,30]
[398331557,1765537977463,-476.53,0.00038904,30]
[398331558,1765537977476,-500.0,0.00038904,30]
[398331559,1765537977484,-500.0,0.00038904,30]
[398331560,1765537977494,-500.0,0.00038904,30]
[398331561,1765537977502,-500.0,0.00038904,30]
[398331562,1765537977512,-500.0,0.00038904,30]
[398331563,1765537977521,-261.46746986,0.00038904,30]
[398331564,1765537977530,-500.0,0.00038904,30]
[398331565,1765537977539,-500.0,0.00038904,30]
[398331566,1765537977548,-500.0,0.00038904,30]
[398331567,1765537977557,-500.0,0.00038904,30]
[398331568,1765537977567,-500.0,0.00038904,30]
[398331569,1765537977576,-500.0,0.00038904,30]
[398331570,1765537977585,-500.0,0.00038904,30]
[398331571,1765537977595,-500.0,0.00038904,30]
[398331572,1765537977603,-500.0,0.00038904,30]
[398331573,1765537977612,-500.0,0.00038904,30]
[398331574,1765537977621,-339.32177097,0.00038904,30]
[398331575,1765537977630,-500.0,0.00038904,30]
[398331576,1765537977639,-500.0,0.00038904,30]
[398331577,1765537977648,-500.0,0.00038904,30]
[398331578,1765537977657,-260.46,0.00038904,30]
[398331579,1765537977666,-500.0,0.00038904,30]
[398331580,1765537977676,-500.0,0.00038904,30]
[398331581,1765537977685,-187.11947792,0.00038904,30]
[398331582,1765537977694,-500.0,0.00038904,30]
[398331583,1765537977703,-500.0,0.00038904,30]
[398331584,1765537977712,-500.0,0.00038904,30]
[398331585,1765537977721,-500.0,0.00038904,30]
[398331586,1765537977730,-500.0,0.00038904,30]
[398331587,1765537977739,-500.0,0.00038904,30]
[398331588,1765537977748,-500.0,0.00038904,30]
[398331589,1765537977757,-500.0,0.00038904,30]
[398331590,1765537977766,-500.0,0.00038904,30]
[398331591,1765537977775,-500.0,0.00038904,30]
[398331592,1765537977784,-500.0,0.00038904,30]
[398331593,1765537977793,-500.0,0.00038904,30]
[398331594,1765537977802,-500.0,0.00038904,30]
[398331595,1765537977811,-555.98249169,0.00038904,30]
[398331596,1765537977820,-412.16,0.00038904,30]
[398331597,1765537977829,-500.0,0.00038904,30]
[398331598,1765537977840,-170.78,0.00038904,30]
[398331599,1765537977852,-500.0,0.00038904,30]
[398331600,1765537977861,-211.7,0.00038904,30]
[398331601,1765537977870,-500.0,0.00038904,30]
[398331602,1765537977879,-617.0,0.00038904,30]
[398331603,1765537977890,-500.0,0.00038904,30]
[398331604,1765537977900,-426.74,0.00038904,30]